Workbook

Sheet County-Sorted
A1: A302100 - Total Workers (Workers 16 years and over)
B2: WORKPLACE
A3: RESIDENCE | B3: Capital Region | C3: Albany County, New York | D3: Rensselaer County, New York | E3: Saratoga County, New York | F3: Schenectady County, New York | G3: Warren County, New York | H3: Washington County, New York | I3: Columbia County, New York | J3: Fulton County, New York | K3: Montgomery County, New York | L3: Greene County, New York | M3: Schoharie County, New York | N3: Hamilton County, New York | O3: Berkshire County, Massachusetts | P3: Bennington County, Vermont | Q3: Total by POR
A4: Capital Region | B4: =SUM(B5:B8) -> 384975 | C4: =SUM(C5:C8) -> 204425 | D4: =SUM(D5:D8) -> 52140 | E4: 70990 | F4: 57420 | G4: 6405 | H4: 2549 | I4: 2000 | J4: 1205 | K4: 1730 | L4: 1915 | M4: 760 | N4: 40 | O4: 950 | P4: 1415 | Q4: =SUM(C4:P4) -> 403944
A5: Albany County, New York | B5: =SUM(C5:F5) -> 144485 | C5: 123445 | D5: 9515 | E5: 4375 | F5: 7150 | G5: 175 | H5: 4 | I5: 785 | J5: 60 | K5: 335 | L5: 1300 | M5: 490 | N5: 0 | O5: 120 | P5: 85 | Q5: =SUM(C5:P5) -> 147839
A6: Rensselaer County, New York | B6: =SUM(C6:F6) -> 73320 | C6: 31970 | D6: 35645 | E6: 3605 | F6: 2100 | G6: 160 | H6: 370 | I6: 1010 | J6: 85 | K6: 100 | L6: 250 | M6: 15 | N6: 0 | O6: 805 | P6: 1300 | Q6: =SUM(C6:P6) -> 77415
A7: Saratoga County, New York | B7: 98125 | C7: 24830 | D7: 4445 | E7: 58735 | F7: 10115 | G7: 6015 | H7: 2150 | I7: 125 | J7: 860 | K7: 700 | L7: 115 | M7: 20 | N7: 40 | O7: 25 | P7: 0 | Q7: 108175
A8: Schenectady County, New York | B8: 69045 | C8: 24180 | D8: 2535 | E8: 4275 | F8: 38055 | G8: 55 | H8: 25 | I8: 80 | J8: 200 | K8: 595 | L8: 250 | M8: 235 | N8: 0 | O8: 0 | P8: 30 | Q8: 70515
A9: Warren County, New York | B9: 5355 | C9: 1115 | D9: 85 | E9: 3955 | F9: 200 | G9: 22675 | H9: 1880 | I9: 20 | J9: 40 | K9: 40 | L9: 10 | M9: 0 | N9: 80 | O9: 0 | P9: 0 | Q9: 30100
A10: Washington County, New York | B10: 6005 | C10: 1475 | D10: 735 | E10: 3545 | F10: 250 | G10: 7185 | H10: 11800 | I10: 4 | J10: 0 | K10: 30 | L10: 0 | M10: 4 | N10: 25 | O10: 15 | P10: 1145 | Q10: 26213
A11: Columbia County, New York | B11: 3950 | C11: 2620 | D11: 1105 | E11: 110 | F11: 115 | G11: 25 | H11: 0 | I11: 18485 | J11: 0 | K11: 15 | L11: 935 | M11: 4 | N11: 0 | O11: 1300 | P11: 4 | Q11: 24718
A12: Fulton County, New York | B12: 3750 | C12: 1375 | D12: 75 | E12: 920 | F12: 1380 | G12: 75 | H12: 25 | I12: 15 | J12: 14880 | K12: 4060 | L12: 15 | M12: 4 | N12: 40 | O12: 4 | P12: 0 | Q12: 22868
A13: Montgomery County, New York | B13: 5415 | C13: 2360 | D13: 185 | E13: 705 | F13: 2165 | G13: 35 | H13: 75 | I13: 4 | J13: 2780 | K13: 12050 | L13: 4 | M13: 590 | N13: 0 | O13: 0 | P13: 0 | Q13: 20953
A14: Greene County, New York | B14: 3970 | C14: 3340 | D14: 405 | E14: 70 | F14: 155 | G14: 4 | H14: 0 | I14: 2065 | J14: 0 | K14: 0 | L14: 11315 | M14: 60 | N14: 0 | O14: 15 | P14: 0 | Q14: 17429
A15: Schoharie County, New York | B15: 3980 | C15: 2270 | D15: 145 | E15: 140 | F15: 1425 | G15: 15 | H15: 15 | I15: 10 | J15: 45 | K15: 150 | L15: 240 | M15: 8710 | N15: 0 | O15: 0 | P15: 15 | Q15: 13180
A16: Hamilton County, New York | B16: 85 | C16: 40 | D16: 10 | E16: 20 | F16: 15 | G16: 100 | H16: 10 | I16: 0 | J16: 335 | K16: 95 | L16: 4 | M16: 0 | N16: 1450 | O16: 0 | P16: 0 | Q16: 2079
A17: Berkshire County, Massachusetts | B17: 520 | C17: 300 | D17: 200 | E17: 20 | F17: 0 | G17: 15 | H17: 4 | I17: 350 | J17: 0 | K17: 0 | L17: 4 | M17: 0 | N17: 0 | O17: 57425 | P17: 380 | Q17: 58698
A18: Bennington County, Vermont | B18: 675 | C18: 165 | D18: 445 | E18: 50 | F18: 15 | G18: 0 | H18: 60 | I18: 0 | J18: 0 | K18: 0 | L18: 0 | M18: 0 | N18: 0 | O18: 1065 | P18: 15325 | Q18: 17125
A19: Total by POW | B19: =SUM(B5:B18) -> 418680 | C19: =SUM(C5:C18) -> 219485 | D19: =SUM(D5:D18) -> 55530 | E19: 80525 | F19: 63140 | G19: 36534 | H19: 16418 | I19: 22953 | J19: 19285 | K19: 18170 | L19: 14442 | M19: 10132 | N19: 1635 | O19: 60774 | P19: 18284 | Q19: =SUM(C19:P19) -> 637307
A21: U.S. Census Bureau, American Community Survey 2006-2010 Five-year estimates. Special Tabulation: Census Transportation Planning
